fUSD/lending_fUSD_20240730
["ID","MTS","AMOUNT","RATE_DAILY","PERIOD"]
[333651341,1722305435638,-500.0,0.00010995,2]
[333651342,1722305435647,-500.0,0.00010996,2]
[333651343,1722305435656,-182.83588914,0.00010996,2]
[333651344,1722305435665,-527.42082962,0.00010996,2]
[333651345,1722305435674,-527.82627482,0.00010996,2]
[333651346,1722305435683,-506.96979797,0.00010996,2]
[333651347,1722305435693,-550.86693682,0.00010996,2]
[333651348,1722305435702,-514.57386048,0.00010996,2]
[333651349,1722305435711,-597.46907882,0.00010996,2]
[333651350,1722305435721,-500.0,0.00010996,2]
[333651351,1722305435730,-513.46535323,0.00010996,2]
[333651352,1722305435739,-532.37870153,0.00010996,2]
[333651353,1722305435749,-511.46177376,0.00010996,2]
[333651354,1722305435758,-500.0,0.00010996,2]
[333651355,1722305435767,-337.20028199,0.00010996,2]
[333651356,1722305435776,-530.05267414,0.00010996,2]
[333651357,1722305435785,-528.90817882,0.00010996,2]
[333651358,1722305435795,-546.6228003,0.00010996,2]
[333651359,1722305435805,-521.72748254,0.00010996,2]
[333651360,1722305435814,-609.6210853,0.00010996,2]
[333651361,1722305435823,-518.78611572,0.00010996,2]
[333651362,1722305435833,-532.10694661,0.00010996,2]
[333651363,1722305435842,-608.1904146,0.00010996,2]
[333651364,1722305435851,-500.0,0.00010996,2]
[333651365,1722305435860,-582.28705522,0.00010996,2]
[333651366,1722305435869,-605.46840152,0.00010996,2]
[333651367,1722305435879,-521.46688832,0.00010996,2]
[333651368,1722305435887,-500.0,0.00010996,2]
[333651369,1722305435896,-500.0,0.00010996,2]
[333651370,1722305435906,-500.0,0.00010996,2]
[333651371,1722305435915,-500.0,0.00010996,2]
[333651372,1722305435924,-500.0,0.00010996,2]
[333651373,1722305435933,-503.83062016,0.00010996,2]
[333651374,1722305435942,-240.29422606,0.00010996,2]
[333651375,1722305436112,-500.0,0.00010996,2]
[333651376,1722305436122,-178.59296432,0.00010996,2]
[333651377,1722305436131,-538.43275185,0.00010996,2]
[333651378,1722305436140,-500.0,0.00010996,2]
[333651379,1722305436151,-595.54875802,0.00010996,2]
[333651380,1722305436162,-500.0,0.00010996,2]
[333651381,1722305436172,-500.0,0.00010996,2]
[333651382,1722305436181,-389.56,0.00010996,2]
[333651383,1722305436191,-500.0,0.00010996,2]
[333651384,1722305436202,-316.32286579,0.00010996,2]
[333651385,1722305436211,-500.0,0.00010996,2]
[333651386,1722305436220,-500.0,0.00010996,2]
[333651387,1722305436231,-500.0,0.00010996,2]
[333651388,1722305436241,-500.0,0.00010996,2]
[333651389,1722305436251,-500.0,0.00010996,2]
[333651390,1722305436260,-574.58190601,0.00010996,2]
[333651391,1722305436270,-500.0,0.00010996,2]
[333651392,1722305436279,-163.92048908,0.00010996,2]
[333651393,1722305436288,-592.85671628,0.00010996,2]
[333651394,1722305436297,-504.72985739,0.00010996,2]
[333651395,1722305436308,-612.4632558,0.00010996,2]
[333651396,1722305436318,-500.0,0.00010996,2]
[333651397,1722305436327,-464.70547561,0.00010996,2]
[333651398,1722305436337,-559.41562645,0.00010996,2]
[333651399,1722305436346,-500.0,0.00010996,2]
[333651400,1722305436355,-581.303703,0.00010996,2]
[333651401,1722305436365,-500.0,0.00010996,2]
[333651402,1722305436374,-500.0,0.00010996,2]
[333651403,1722305436383,-500.0,0.00010996,2]
[333651404,1722305436393,-500.0,0.00010996,2]
[333651405,1722305436402,-500.0,0.00010996,2]
[333651406,1722305436411,-500.0,0.00010996,2]
[333651407,1722305436420,-500.0,0.00010996,2]
[333651408,1722305436430,-451.41,0.00010996,2]
[333651409,1722305436439,-311.71955267,0.00010996,2]
[333651410,1722305436448,-359.72431312,0.00010996,2]
[333651411,1722305436458,-500.0,0.00010996,2]
[333651412,1722305436467,-500.0,0.00010996,2]
[333651413,1722305436476,-500.0,0.00010996,2]
[333651414,1722305436486,-574.83764405,0.00010996,2]
[333651415,1722305436495,-500.0,0.00010996,2]
[333651416,1722305436504,-500.0,0.00010996,2]
[333651417,1722305436513,-500.0,0.00010996,2]
[333651418,1722305436523,-500.0,0.00010996,2]
[333651419,1722305436532,-570.67337353,0.00010996,2]
[333651420,1722305436542,-500.0,0.00010996,2]
[333651421,1722305436551,-500.0,0.00010996,2]
[333651422,1722305436561,-399.33640192,0.00010996,2]
[333651423,1722305436570,-500.0,0.00010996,2]
[333651424,1722305436579,-500.0,0.00010996,2]
[333651425,1722305436588,-500.0,0.00010996,2]
[333651426,1722305436598,-500.0,0.00010996,2]
[333651427,1722305436607,-500.0,0.00010996,2]
[333651428,1722305436616,-500.0,0.00010996,2]
[333651429,1722305436626,-163.77913727,0.00010996,2]
[333651430,1722305436635,-506.34090388,0.00010996,2]
[333651431,1722305436644,-369.83055944,0.00010996,2]
[333651432,1722305436653,-500.0,0.00010996,2]
[333651433,1722305436663,-500.0,0.00010996,2]
[333651434,1722305436672,-500.0,0.00010996,2]
[333651435,1722305436681,-500.0,0.00010996,2]
[333651436,1722305436690,-500.0,0.00010996,2]
[333651437,1722305436699,-495.84631486,0.00010996,2]
[333651438,1722305436708,-500.0,0.00010996,2]
[333651439,1722305436718,-500.0,0.00010996,2]
[333651440,1722305436727,-500.0,0.00010996,2]
[333651441,1722305436737,-500.0,0.00010996,2]
[333651442,1722305436746,-500.0,0.00010996,2]
[333651443,1722305436755,-500.0,0.00010996,2]
[333651444,1722305436765,-204.24434856,0.00010996,2]
[333651445,1722305436775,-500.0,0.00010996,2]
[333651446,1722305436784,-500.0,0.00010996,2]
[333651447,1722305436793,-500.0,0.00010996,2]
[333651448,1722305436803,-500.0,0.00010996,2]
[333651449,1722305436813,-500.0,0.00010996,2]
[333651450,1722305436822,-192.41013519,0.00010996,2]
[333651451,1722305436831,-458.5319133,0.00010996,2]
[333651452,1722305436841,-648.9,0.00010996,2]
[333651453,1722305436850,-648.9,0.00010996,2]
[333651454,1722305436860,-648.9,0.00010996,2]
[333651455,1722305436870,-648.9,0.00010996,2]
[333651456,1722305436879,-648.9,0.00010996,2]
[333651457,1722305436888,-648.9,0.00010996,2]
[333651458,1722305436898,-500.0,0.00010996,2]
[333651459,1722305436907,-500.0,0.00010996,2]
[333651460,1722305436916,-500.0,0.00010996,2]
[333651461,1722305436925,-500.0,0.00010996,2]
[333651462,1722305436935,-500.0,0.00010996,2]
[333651463,1722305436944,-500.0,0.00010996,2]
[333651464,1722305436953,-500.0,0.00010996,2]
[333651465,1722305436963,-500.0,0.00010996,2]
[333651466,1722305436972,-500.0,0.00010996,2]
[333651467,1722305436981,-500.0,0.00010996,2]
[333651468,1722305436991,-500.0,0.00010996,2]
[333651469,1722305437000,-500.0,0.00010996,2]
[333651470,1722305437009,-500.0,0.00010996,2]
[333651471,1722305437019,-500.0,0.00010996,2]
[333651472,1722305437029,-500.0,0.00010996,2]
[333651473,1722305437038,-500.0,0.00010996,2]
[333651474,1722305437048,-363.89525396,0.00010996,2]
[333651475,1722305437060,-500.0,0.00010996,2]
[333651476,1722305437070,-500.0,0.00010996,2]
[333651477,1722305437080,-500.0,0.00010996,2]
[333651478,1722305437089,-500.0,0.00010996,2]
[333651479,1722305437099,-500.0,0.00010996,2]
[333651480,1722305437108,-196.75426703,0.00010996,2]
[333651481,1722305437117,-500.0,0.00010996,2]
[333651482,1722305437126,-500.0,0.00010996,2]
[333651483,1722305437136,-528.7363704,0.00010996,2]
[333651484,1722305437145,-500.0,0.00010996,2]
[333651485,1722305437158,-500.0,0.00010996,2]
[333651486,1722305437168,-500.0,0.00010996,2]
[333651487,1722305437177,-500.0,0.00010996,2]
[333651488,1722305437187,-221.27393131,0.00010996,2]
[333651489,1722305437197,-515.29136419,0.00010996,2]
[333651490,1722305437207,-500.0,0.00010996,2]
[333651491,1722305437216,-505.58712529,0.00010996,2]
[333651492,1722305437227,-500.0,0.00010996,2]
[333651493,1722305437236,-500.0,0.00010996,2]
[333651494,1722305437246,-500.0,0.00010996,2]
[333651495,1722305437255,-500.0,0.00010996,2]
[333651496,1722305437265,-500.0,0.00010996,2]
[333651497,1722305437275,-500.0,0.00010996,2]
[333651498,1722305437284,-500.0,0.00010996,2]
[333651499,1722305437294,-553.93771875,0.00010996,2]
[333651500,1722305437304,-500.0,0.00010996,2]
[333651501,1722305437313,-500.0,0.00010996,2]
[333651502,1722305437323,-500.0,0.00010996,2]
[333651503,1722305437332,-500.0,0.00010996,2]
[333651504,1722305437342,-263.43666057,0.00010996,2]
[333651505,1722305437351,-500.0,0.00010996,2]
[333651506,1722305437360,-500.0,0.00010996,2]
[333651507,1722305437371,-500.0,0.00010996,2]
[333651508,1722305437380,-500.0,0.00010996,2]
[333651509,1722305437390,-500.0,0.00010996,2]
[333651510,1722305437399,-155.64889983,0.00010996,2]
[333651511,1722305437408,-362.27091722,0.00010996,2]
[333651512,1722305437418,-500.0,0.00010996,2]
[333651513,1722305437427,-500.0,0.00010996,2]
[333651514,1722305437436,-500.0,0.00010996,2]
[333651515,1722305437447,-500.0,0.00010996,2]
[333651516,1722305437458,-500.0,0.00010996,2]
[333651517,1722305437467,-479.56238965,0.00010996,2]
[333651518,1722305437477,-500.0,0.00010996,2]
[333651519,1722305437486,-500.0,0.00010996,2]
[333651520,1722305437496,-500.0,0.00010996,2]
[333651521,1722305437505,-500.0,0.00010996,2]
[333651522,1722305437514,-500.0,0.00010996,2]
[333651523,1722305437523,-500.0,0.00010996,2]
[333651524,1722305437533,-500.0,0.00010996,2]
[333651525,1722305437543,-500.0,0.00010996,2]
[333651526,1722305437554,-500.0,0.00010996,2]
[333651527,1722305437563,-500.0,0.00010996,2]
[333651528,1722305437574,-500.0,0.00010996,2]
[333651529,1722305437583,-500.0,0.00010996,2]
[333651530,1722305437593,-500.0,0.00010996,2]
[333651531,1722305437603,-548.42116576,0.00010996,2]
[333651532,1722305437612,-500.0,0.00010996,2]
[333651533,1722305437621,-500.0,0.00010996,2]
[333651534,1722305437631,-500.0,0.00010996,2]
[333651535,1722305437640,-500.0,0.00010996,2]
[333651536,1722305437650,-500.0,0.00010996,2]
[333651537,1722305437659,-500.0,0.00010996,2]
[333651538,1722305437668,-500.0,0.00010996,2]
[333651539,1722305437678,-256.16530918,0.00010996,2]
[333651540,1722305437687,-500.0,0.00010996,2]
[333651541,1722305437696,-280.6146,0.00010996,2]
[333651542,1722305437705,-500.0,0.00010996,2]
[333651543,1722305437715,-500.0,0.00010996,2]
[333651544,1722305437724,-500.0,0.00010996,2]
[333651545,1722305437733,-500.0,0.00010996,2]
[333651546,1722305437742,-401.149836,0.00010996,2]
[333651547,1722305437752,-500.0,0.00010996,2]
[333651548,1722305437761,-445.68951219,0.00010996,2]
[333651549,1722305437771,-500.0,0.00010996,2]
[333651550,1722305437780,-500.0,0.00010996,2]
[333651551,1722305437790,-500.0,0.00010996,2]
[333651552,1722305437800,-500.0,0.00010996,2]
[333651553,1722305437811,-500.0,0.00010996,2]
[333651554,1722305437820,-500.0,0.00010996,2]
[333651555,1722305437829,-500.0,0.00010996,2]
[333651556,1722305437838,-500.0,0.00010996,2]
[333651557,1722305437847,-500.0,0.00010996,2]
[333651558,1722305437857,-500.0,0.00010996,2]
[333651559,1722305437866,-500.0,0.00010996,2]
[333651560,1722305437875,-500.0,0.00010996,2]
[333651561,1722305437884,-500.0,0.00010996,2]
[333651562,1722305437894,-285.04234241,0.00010996,2]
[333651563,1722305437903,-500.0,0.00010996,2]
[333651564,1722305437913,-500.0,0.00010996,2]
[333651565,1722305437922,-500.0,0.00010996,2]
[333651566,1722305437931,-500.0,0.00010996,2]
[333651567,1722305437942,-500.0,0.00010996,2]
[333651568,1722305437951,-500.0,0.00010996,2]
[333651569,1722305437960,-464.58604656,0.00010996,2]
[333651570,1722305437970,-500.0,0.00010996,2]
[333651571,1722305437979,-500.0,0.00010996,2]
[333651574,1722305437988,-500.0,0.00010996,2]
[333651575,1722305437998,-786.42,0.00010996,2]
[333651577,1722305438007,-500.0,0.00010996,2]
[333651578,1722305438016,-786.42,0.00010996,2]
[333651579,1722305438026,-500.0,0.00010996,2]
[333651580,1722305438035,-500.0,0.00010996,2]
[333651581,1722305438044,-786.42,0.00010996,2]
[333651582,1722305438055,-786.42,0.00010996,2]
[333651583,1722305438065,-786.42,0.00010996,2]
[333651584,1722305438074,-786.42,0.00010996,2]
[333651585,1722305438084,-500.0,0.00010996,2]
[333651586,1722305438094,-500.0,0.00010996,2]
[333651587,1722305438103,-500.0,0.00010996,2]
[333651588,1722305438113,-500.0,0.00010996,2]
[333651589,1722305438122,-328.48680762,0.00010996,2]
[333651590,1722305438132,-500.0,0.00010996,2]
[333651591,1722305438141,-500.0,0.00010996,2]
[333651592,1722305438151,-500.0,0.00010996,2]
[333651593,1722305438164,-500.0,0.00010996,2]
[333651594,1722305438173,-500.0,0.00010996,2]
[333651595,1722305438182,-500.0,0.00010996,2]
[333651596,1722305438193,-500.0,0.00010996,2]
[333651597,1722305438203,-500.0,0.00010996,2]
[333651598,1722305438212,-500.0,0.00010996,2]
[333651599,1722305438222,-354.59307879,0.00010996,2]
[333651600,1722305438231,-500.0,0.00010996,2]
[333651601,1722305438242,-275.92,0.00010996,2]
[333651602,1722305438252,-500.0,0.00010996,2]
[333651603,1722305438261,-500.0,0.00010996,2]
[333651604,1722305438271,-500.0,0.00010996,2]
[333651605,1722305438280,-500.0,0.00010996,2]
[333651606,1722305438289,-500.0,0.00010996,2]
[333651607,1722305438299,-500.0,0.00010996,2]
[333651608,1722305438309,-621.13923018,0.00010996,2]
[333651609,1722305438319,-632.33,0.00010996,2]
[333651610,1722305438329,-632.33,0.00010996,2]
[333651611,1722305438339,-632.33,0.00010996,2]
[333651612,1722305438349,-632.33,0.00010996,2]
[333651613,1722305438358,-632.33,0.00010996,2]
[333651614,1722305438368,-632.33,0.00010996,2]
[333651615,1722305438377,-500.0,0.00010996,2]
[333651616,1722305438386,-500.0,0.00010996,2]
[333651617,1722305438395,-500.0,0.00010996,2]
[333651618,1722305438409,-548.60527782,0.00010996,2]
[333651619,1722305438418,-500.0,0.00010996,2]
[333651620,1722305438471,-500.0,0.00010996,2]
[333651621,1722305438480,-500.0,0.00010996,2]
[333651622,1722305438490,-500.0,0.00010996,2]
[333651623,1722305438499,-500.0,0.00010996,2]
[333651624,1722305438508,-566.38374129,0.00010996,2]
[333651625,1722305438517,-500.0,0.00010996,2]
[333651626,1722305438526,-500.0,0.00010996,2]
[333651627,1722305438535,-500.0,0.00010996,2]
[333651628,1722305438544,-500.0,0.00010996,2]
[333651629,1722305438555,-500.0,0.00010996,2]
[333651630,1722305438564,-500.0,0.00010996,2]
[333651631,1722305438573,-500.0,0.00010996,2]
[333651632,1722305438582,-500.0,0.00010996,2]
[333651633,1722305438591,-266.80179185,0.00010996,2]
[333651634,1722305438600,-500.0,0.00010996,2]
[333651635,1722305438609,-500.0,0.00010996,2]
[333651636,1722305438618,-500.0,0.00010996,2]
[333651637,1722305438627,-500.0,0.00010996,2]
[333651638,1722305438637,-500.0,0.00010996,2]
[333651639,1722305438646,-500.0,0.00010996,2]
[333651640,1722305438655,-500.0,0.00010996,2]
[333651641,1722305438664,-500.0,0.00010996,2]
[333651643,1722305438674,-500.0,0.00010996,2]
[333651645,1722305438683,-257.02115791,0.00010996,2]
[333651646,1722305438691,-500.0,0.00010996,2]
[333651648,1722305438700,-500.0,0.00010996,2]
[333651650,1722305438710,-500.0,0.00010996,2]
[333651652,1722305438719,-500.0,0.00010996,2]
[333651654,1722305438728,-500.0,0.00010996,2]
[333651655,1722305438738,-500.0,0.00010996,2]
[333651657,1722305438747,-404.02053057,0.00010996,2]
[333651659,1722305438756,-500.0,0.00010996,2]
[333651661,1722305438766,-500.0,0.00010996,2]
[333651663,1722305438775,-500.0,0.00010996,2]
[333651665,1722305438784,-500.0,0.00010996,2]
[333651667,1722305438794,-571.43,0.00010996,2]
[333651669,1722305438803,-500.0,0.00010996,2]
[333651671,1722305438812,-571.43,0.00010996,2]
[333651673,1722305438821,-500.0,0.00010996,2]
[333651675,1722305438830,-571.43,0.00010996,2]
[333651677,1722305438839,-571.43,0.00010996,2]
[333651679,1722305438848,-571.43,0.00010996,2]
[333651680,1722305438857,-571.43,0.00010996,2]
[333651681,1722305438866,-500.0,0.00010996,2]
[333651682,1722305438876,-500.0,0.00010996,2]
[333651683,1722305438885,-500.0,0.00010996,2]
[333651684,1722305438895,-500.0,0.00010996,2]
[333651685,1722305438904,-500.0,0.00010996,2]
[333651686,1722305438913,-500.0,0.00010996,2]
[333651687,1722305438922,-500.0,0.00010996,2]
[333651688,1722305438932,-500.0,0.00010996,2]
[333651690,1722305438941,-500.0,0.00010996,2]
[333651692,1722305438950,-500.0,0.00010996,2]
[333651693,1722305438960,-500.0,0.00010996,2]
[333651695,1722305438969,-500.0,0.00010996,2]
[333651696,1722305438979,-590.58558796,0.00010996,2]
[333651697,1722305438988,-500.0,0.00010996,2]
[333651698,1722305438997,-500.0,0.00010996,2]
[333651699,1722305439006,-462.73761053,0.00010996,2]
[333651700,1722305439064,-37.26238947,0.00010996,2]
[333651701,1722305439075,-500.0,0.00010996,2]
[333651702,1722305439084,-500.0,0.00010996,2]
[333651703,1722305439094,-500.0,0.00010996,2]
[333651704,1722305439103,-500.0,0.00010996,2]
[333651705,1722305439112,-500.0,0.00010996,2]
[333651706,1722305439121,-500.0,0.00010996,2]
[333651707,1722305439131,-500.0,0.00010996,2]
[333651708,1722305439140,-500.0,0.00010996,2]
[333651709,1722305439152,-500.0,0.00010996,2]
[333651710,1722305439169,-239.03527128,0.00010996,2]
[333651711,1722305439181,-260.96472872,0.00010996,2]
[333651712,1722305439190,-59.12430221,0.00010996,2]
[333651713,1722305439206,-440.87569779,0.00010996,2]
[333651714,1722305439216,-500.0,0.00010996,2]
[333651715,1722305439226,-549.35418787,0.00010996,2]
[333651716,1722305439236,-244.90121749,0.00010996,2]
[333651717,1722305439246,-446.60107882,0.00010996,2]
[333651718,1722305439256,-500.0,0.00010996,2]
[333651719,1722305439265,-428.29586481,0.00010996,2]
[333651720,1722305439275,-517.91604937,0.00010996,2]
[333651721,1722305439284,-500.0,0.00010996,2]
[333651722,1722305439294,-500.0,0.00010996,2]
[333651723,1722305439305,-448.06467341,0.00010996,2]
[333651724,1722305439315,-530.081783,0.00010996,2]
[333651725,1722305439324,-517.02873213,0.00010996,2]
[333651726,1722305439333,-500.0,0.00010996,2]
[333651727,1722305439342,-500.0,0.00010996,2]
[333651728,1722305439351,-535.94099659,0.00010996,2]
[333651729,1722305439361,-501.86497443,0.00010996,2]
[333651730,1722305439370,-1993.24,0.00010996,2]
[333651731,1722305439380,-1993.24,0.00010996,2]
[333651732,1722305439390,-1993.24,0.00010996,2]
[333651733,1722305439399,-1993.24,0.00010996,2]
[333651734,1722305439408,-1993.24,0.00010996,2]
[333651735,1722305439418,-1993.24,0.00010996,2]
[333651736,1722305439427,-506.89543798,0.00010996,2]
[333651737,1722305439437,-513.57715511,0.00010996,2]
[333651738,1722305439446,-500.0,0.00010996,2]
[333651739,1722305439455,-500.0,0.00010996,2]
[333651740,1722305439464,-530.18832706,0.00010996,2]
[333651741,1722305439474,-500.0,0.00010996,2]
[333651742,1722305439484,-500.0,0.00010996,2]
[333651743,1722305439493,-500.0,0.00010996,2]
[333651744,1722305439502,-577.80662813,0.00010996,2]
[333651745,1722305439511,-500.0,0.00010996,2]
[333651746,1722305439520,-500.0,0.00010996,2]
[333651747,1722305439529,-154.36478472,0.00010996,2]
[333651748,1722305439538,-500.0,0.00010996,2]
[333651749,1722305439547,-500.0,0.00010996,2]
[333651750,1722305439558,-570.97154602,0.00010996,2]
[333651751,1722305439567,-506.5718552,0.00010996,2]
[333651752,1722305439576,-504.85504953,0.00010996,2]
[333651753,1722305439585,-500.0,0.00010996,2]
[333651754,1722305439595,-500.0,0.00010996,2]
[333651755,1722305439604,-500.0,0.00010996,2]
[333651756,1722305439613,-500.0,0.00010996,2]
[333651757,1722305439622,-500.0,0.00010996,2]
[333651758,1722305439631,-593.54245073,0.00010996,2]
[333651759,1722305439641,-500.0,0.00010996,2]
[333651760,1722305439649,-500.0,0.00010996,2]
[333651761,1722305439658,-500.0,0.00010996,2]
[333651762,1722305439667,-500.0,0.00010996,2]
[333651763,1722305439676,-500.0,0.00010996,2]
[333651764,1722305439686,-633.65156561,0.00010996,2]
[333651765,1722305439695,-588.85408443,0.00010996,2]
[333651766,1722305439704,-500.0,0.00010996,2]
[333651767,1722305439713,-500.0,0.00010996,2]
[333651768,1722305439723,-500.0,0.00010996,2]
[333651769,1722305439732,-500.0,0.00010996,2]
[333651770,1722305439741,-500.0,0.00010996,2]
[333651771,1722305439750,-500.0,0.00010996,2]
[333651772,1722305439759,-256.71802613,0.00010996,2]
[333651773,1722305439768,-584.31687036,0.00010996,2]
[333651774,1722305439777,-347.04601585,0.00010996,2]
[333651775,1722305439786,-500.0,0.00010996,2]
[333651776,1722305439795,-262.55854131,0.00010996,2]
[333651777,1722305439804,-436.39689853,0.00010996,2]
[333651778,1722305439813,-306.66099678,0.00010996,2]
[333651779,1722305439822,-500.0,0.00010996,2]
[333651780,1722305439831,-612.06533583,0.00010996,2]
[333651781,1722305439840,-500.0,0.00010996,2]
[333651782,1722305439849,-539.6637618,0.00010996,2]
[333651783,1722305439858,-500.0,0.00010996,2]
[333651784,1722305439868,-183.2387802,0.00010996,2]
[333651785,1722305439877,-158.21529715,0.00010996,2]
[333651786,1722305439886,-518.48,0.00010996,2]
[333651787,1722305439896,-518.48,0.00010996,2]
[333651788,1722305439905,-518.48,0.00010996,2]
[333651789,1722305439914,-646.97094865,0.00010996,2]
[333651790,1722305439923,-330.77657548,0.00010996,2]
[333651791,1722305439933,-500.0,0.00010996,2]
[333651792,1722305439942,-163.42227969,0.00010996,2]
[333651793,1722305439951,-427.36341607,0.00010996,2]
[333651794,1722305439961,-341.77335639,0.00010996,2]
[333651795,1722305439970,-500.0,0.00010996,2]
[333651796,1722305439979,-500.0,0.00010996,2]
[333651797,1722305439989,-500.0,0.00010996,2]
[333651798,1722305439998,-410.72736505,0.00010996,2]
[333651799,1722305440007,-380.61403969,0.00010996,2]
[333651800,1722305440016,-207.94838983,0.00010996,2]
[333651801,1722305440025,-150.0,0.00010996,2]
[333651802,1722305440035,-150.0,0.00010996,2]
[333651803,1722305440044,-150.0,0.00010996,2]
[333651804,1722305440053,-500.0,0.00010996,2]
[333651805,1722305440064,-402.19360011,0.00010996,2]
[333651806,1722305440076,-500.0,0.00010996,2]
[333651807,1722305440085,-500.0,0.00010996,2]
[333651808,1722305440094,-500.0,0.00010996,2]
[333651809,1722305440104,-500.0,0.00010996,2]
[333651810,1722305440113,-473.6044503,0.00010996,2]
[333651811,1722305440123,-504.58410631,0.00010996,2]
[333651812,1722305440132,-505.70822067,0.00010996,2]
[333651813,1722305440141,-415.136765,0.00010996,2]
[333651815,1722305440153,-376.15629034,0.00010996,2]
[333651817,1722305440164,-500.0,0.00010996,2]
[333651818,1722305440173,-500.0,0.00010996,2]
[333651819,1722305440182,-412.26481716,0.00010996,2]
[333651820,1722305440191,-512.3482708,0.00010996,2]
[333651821,1722305440202,-544.0,0.00010997,2]
[333651822,1722305440211,-8317.9324601,0.00010997,2]
[333651823,1722305440415,-331.77046569,0.00010997,2]
[333651824,1722305440439,-1075.43,0.00010997,2]
[333651825,1722305440450,-773659.6875494,0.00010997,2]
[333651826,1722305440460,-500.0,0.00010997,2]
[333651827,1722305440470,-500.0,0.00010997,2]
[333651828,1722305440480,-648.9,0.00010997,2]
[333651829,1722305440489,-500.0,0.00010997,2]
[333651830,1722305440498,-500.0,0.00010997,2]
[333651831,1722305440507,-500.0,0.00010997,2]
[333651832,1722305440517,-500.0,0.00010997,2]
[333651833,1722305440526,-500.0,0.00010997,2]
[333651834,1722305440535,-500.0,0.00010997,2]
[333651835,1722305440544,-500.0,0.00010997,2]
[333651836,1722305440555,-176.62505446,0.00010997,2]
[333651837,1722305440565,-500.0,0.00010997,2]
[333651838,1722305440575,-500.0,0.00010997,2]
[333651839,1722305440584,-786.42,0.00010997,2]
[333651840,1722305440593,-500.0,0.00010997,2]
[333651841,1722305440603,-500.0,0.00010997,2]
[333651842,1722305440612,-632.33,0.00010997,2]
[333651843,1722305440623,-500.0,0.00010997,2]
[333651844,1722305440632,-500.0,0.00010997,2]
[333651845,1722305440642,-500.0,0.00010997,2]
[333651846,1722305440651,-500.0,0.00010997,2]
[333651847,1722305440661,-571.43,0.00010997,2]
[333651848,1722305440671,-500.0,0.00010997,2]
[333651849,1722305440681,-500.0,0.00010997,2]
[333651850,1722305440691,-500.0,0.00010997,2]
[333651851,1722305440700,-500.0,0.00010997,2]
[333651852,1722305440710,-500.0,0.00010997,2]
[333651853,1722305440719,-500.0,0.00010997,2]
[333651854,1722305440729,-1993.24,0.00010997,2]
[333651855,1722305440739,-500.0,0.00010997,2]
[333651857,1722305440749,-444.37329484,0.00010997,2]
[333651858,1722305440758,-500.0,0.00010997,2]
[333651860,1722305440768,-500.0,0.00010997,2]
[333651862,1722305440778,-518.48,0.00010997,2]
[333651863,1722305440787,-150.0,0.00010997,2]
[333651864,1722305440797,-3000.0,0.00010997,2]
[333651865,1722305440810,-102926.58013971,0.00010998,2]
[333651866,1722305440820,-500.0,0.00010998,2]
[333651867,1722305440829,-500.0,0.00010998,2]
[333651868,1722305440838,-379.8292245,0.00010998,2]
[333651869,1722305440847,-551.3733777,0.00010998,2]